bitfinex-derivatives/quotes_ETHF0:USTF0_20241129
["timestamp","ask_amount","ask_price","bid_price","bid_amount"]
[1732897064748,3.2078,3598.5,3598.4,0.27755]
[1732897064942,3.2078,3598.5,3598.4,1.45755]
[1732897065348,3.48534,3598.5,3598.4,1.18]
[1732897065940,3.7631579,3598.5,3598.4,1.18]
[1732897066241,3.7631579,3598.5,3598.4,1.45755]
[1732897066557,3.7631579,3598.5,3598.4,1.18]
[1732897067056,3.7631579,3598.5,3598.4,1.31755]
[1732897067247,3.4856179,3598.5,3597.7,1.4924]
[1732897067442,3.2078,3597.8,3597.7,3.244715]
[1732897067648,3.4854,3597.8,3597.7,2.967115]
[1732897067858,3.2078,3597.8,3597.7,3.244715]
[1732897068551,3.48537,3598.2,3597.8,0.2776]
[1732897068754,3.2078,3598.2,3598.1,0.27757]
[1732897069053,3.2078,3598.2,3598.1,1.05757]
[1732897069456,3.48536,3598.2,3598.1,0.78]
[1732897070051,3.48536,3598.2,3598.1,1.05757]
[1732897070252,3.2078,3598.2,3598.1,1.05757]
[1732897070453,3.48536,3598.2,3598.1,0.78]
[1732897071056,3.2078,3598.2,3598.1,0.78]
[1732897071357,3.2078,3598.2,3598.1,1.05757]
[1732897072259,2.66286476,3598.3,3598.2,0.27756]
[1732897072552,2.66286476,3598.3,3598.2,2.51756]
[1732897073071,3.2078,3598.6,3598.2,2.24]
[1732897073267,0.27754,3598.6,3598.5,0.27754]
[1732897073560,3.2078,3598.6,3598.5,1.15]
[1732897073951,3.48533,3598.6,3598.5,1.15]
[1732897074354,3.48533,3598.6,3598.5,0.39]
[1732897074753,4.14572185,3598.6,3598.5,0.39]
[1732897074950,3.86819185,3598.6,3598.5,0.6]
[1732897075256,4.14572185,3598.6,3598.5,0.6]
[1732897076057,4.14572185,3598.6,3598.5,0.87754]
[1732897076251,4.14572185,3598.6,3598.5,0.6]
[1732897076556,3.86819185,3598.6,3598.5,0.87754]
[1732897078157,0.66039185,3598.6,3598.5,0.87754]
[1732897078458,3.86819185,3598.6,3598.5,0.87754]
[1732897079360,4.14572185,3598.6,3598.5,0.87754]
[1732897079562,3.86819185,3598.6,3598.5,0.87754]
[1732897082268,4.14572185,3598.6,3598.5,0.87754]
[1732897082462,3.86819185,3598.6,3598.5,0.87754]
[1732897083374,8.18601902,3598.6,3598.5,0.6]
[1732897083564,9.26547581,3598.6,3598.5,0.87754]
[1732897083970,9.54300581,3598.6,3598.5,0.87754]
[1732897084372,9.54300581,3598.6,3598.5,0.6]
[1732897084373,9.26547581,3598.6,3598.5,0.6]
[1732897084573,3.86819185,3598.6,3598.5,0.87754]
[1732897085471,4.14572185,3598.6,3598.5,0.87754]
[1732897086269,4.14572185,3598.6,3598.5,0.6]
[1732897086482,3.86819185,3598.6,3598.5,0.87754]
[1732897087270,0.66039185,3598.6,3598.5,0.87754]
[1732897087771,0.93792185,3598.6,3598.5,0.87754]
[1732897088073,0.66039185,3598.6,3598.5,0.87754]
[1732897088273,0.93792185,3598.6,3598.5,0.87754]
[1732897088570,4.14572185,3598.6,3598.5,0.6]
[1732897088869,3.86819185,3598.6,3598.5,0.87754]
[1732897089773,4.14572185,3598.6,3598.5,0.87754]
[1732897090369,4.14572185,3598.6,3598.5,0.6]
[1732897090587,4.14572185,3598.6,3597.7,1.93]
[1732897090588,0.69386,3598.5,3597.7,1.93]
[1732897090875,9.97660094,3597.8,3597.7,0.4]
[1732897091075,4.14579185,3597.8,3597.7,0.4]
[1732897091271,4.14579185,3597.8,3597.7,0.27]
[1732897091470,11.44125961,3597.8,3596.9,4.2578]
[1732897091673,0.27765,3597.1,3597.0,1.4995]
[1732897091872,1.55013614,3597.1,3597.0,4.4795]
[1732897092069,1.55013614,3597.1,3597.0,2.98600671]
[1732897092274,1.55013614,3597.1,3597.0,2.98]
[1732897092574,3.6581077,3597.1,3597.0,1.48090323]
[1732897092880,0.27768,3596.7,3596.6,0.01249377]
[1732897093081,0.93807185,3596.7,3596.6,4.21249377]
[1732897093270,0.66039185,3596.7,3596.6,4.49018377]
[1732897093677,6.48823394,3596.9,3596.6,4.21249377]
[1732897093879,1.55633394,3596.9,3596.8,0.27767]
[1732897094183,7.57259749,3597.1,3597.0,0.27766]
[1732897094373,7.57259749,3597.1,3597.0,1.62766]
[1732897094876,7.85024749,3597.1,3597.0,1.35]
[1732897095080,0.27765,3597.2,3597.0,1.35]
[1732897095372,2.33506844,3597.5,3597.0,1.35]
[1732897095774,0.27765,3597.1,3597.0,1.62766]
[1732897095970,0.27765,3597.1,3596.6,0.01249377]
[1732897095971,5.31577156,3597.1,3596.6,0.01249377]
[1732897096171,0.27768,3596.7,3596.6,3.87249377]
[1732897096367,6.60477156,3596.7,3595.8,5.76]
[1732897096573,0.27774,3595.9,3595.8,3.54]
[1732897096781,0.27774,3595.9,3595.8,2.67287738]
[1732897097079,0.27774,3595.9,3595.8,2.54287738]
[1732897097480,0.27774,3595.9,3595.8,2.41287738]
[1732897098175,0.27774,3595.9,3595.0,5.1611]
[1732897098176,5.31577156,3596.2,3595.0,3.61]
[1732897098475,3.4856,3595.1,3595.0,0.43]
[1732897098776,4.7746,3595.1,3595.0,0.43]
[1732897099075,0.22977398,3595.1,3595.0,0.43]
[1732897099371,0.22977398,3595.1,3595.0,0.70781]
[1732897099966,0.85154628,3595.1,3595.0,0.43]
[1732897102173,0.85154628,3595.1,3595.0,0.70781]
[1732897102481,2.10797156,3595.7,3595.5,0.27777]
[1732897102674,2.10797156,3595.7,3595.6,0.27777]
[1732897102979,2.10797156,3595.7,3595.6,3.62777]
[1732897103473,2.38599028,3595.7,3595.6,3.35]
[1732897103780,2.38599028,3595.7,3595.6,3.62777]
[1732897104685,2.3858713,3596.1,3596.0,0.27773]
[1732897104875,2.3858713,3596.1,3596.0,2.14773]
[1732897105673,2.10797156,3596.1,3596.0,2.14773]
[1732897105877,5.31577156,3597.3,3596.0,6.87]
[1732897106079,2.10797156,3597.3,3596.6,3.2078]
[1732897106275,2.10797156,3597.3,3596.7,1.5379]
[1732897106481,2.10797156,3597.7,3597.0,3.2078]
[1732897106683,2.10797156,3597.7,3597.6,0.27761]
[1732897106902,2.10797156,3597.7,3597.6,1.88761]
[1732897107277,15.14367564,3597.7,3596.1,3.2078]
[1732897107486,2.10797156,3596.6,3596.1,1.76]
[1732897107881,2.38566156,3596.6,3596.3,0.27771]
[1732897108184,2.10797156,3596.6,3596.5,0.2777]
[1732897108373,2.10797156,3597.0,3596.7,0.27767]
[1732897108579,2.38562156,3597.2,3596.8,0.27767]
[1732897108779,2.38562156,3597.2,3596.8,3.22]
[1732897108975,3.2078,3597.1,3596.8,3.22]
[1732897109176,0.27766,3597.0,3596.8,3.22]
[1732897109381,3.2078,3597.1,3597.0,0.27766]
[1732897109581,3.48545,3597.1,3597.0,4.11]
[1732897109778,2.10797156,3597.2,3597.0,4.38765]
[1732897110086,2.38562156,3597.2,3597.0,4.11]
[1732897110383,0.27765,3597.1,3597.0,4.11]
[1732897110685,0.45131544,3597.1,3597.0,4.11]
[1732897110888,3.65911544,3597.1,3597.0,4.11]
[1732897111085,3.38146544,3597.1,3597.0,4.11]
[1732897111283,0.17366544,3597.1,3597.0,4.11]
[1732897111584,0.17366544,3597.1,3597.0,4.38766]
[1732897111975,0.45131544,3597.1,3597.0,4.11]
[1732897112288,3.65911544,3597.1,3597.0,4.11]
[1732897112486,4.12526276,3597.1,3597.0,4.11]
[1732897112995,4.99923607,3597.1,3597.0,2.72035839]
[1732897113286,4.99923607,3597.1,3597.0,1.85191532]
[1732897113989,3.84761276,3597.1,3597.0,2.12957532]
[1732897114287,3.84761276,3597.1,3597.0,1.85191532]
[1732897114288,4.12526276,3597.1,3597.0,1.85191532]
[1732897114481,4.41030119,3597.1,3597.0,1.85191532]
[1732897114879,4.13265119,3597.1,3597.0,1.85191532]
[1732897115084,4.41030119,3597.1,3597.0,1.85191532]
[1732897115880,4.98774596,3597.1,3597.0,0.63611328]
[1732897116082,1.77994596,3597.1,3597.0,0.63611328]
[1732897116492,1.77994596,3597.1,3597.0,0.91377328]
[1732897116690,1.74702454,3597.1,3597.0,0.63611328]
[1732897116985,4.95482454,3597.1,3597.0,0.63611328]
[1732897117483,5.23247454,3597.1,3597.0,0.63611328]
[1732897120302,0.27773,3596.1,3595.6,3.2078]
[1732897120479,1.16965977,3596.1,3596.0,2.55]
[1732897120883,2.02475454,3596.1,3596.0,2.55]
[1732897121880,1.74702454,3596.1,3595.2,4.47]
[1732897122085,3.48559,3595.3,3595.2,3.23905079]
[1732897122282,3.48559,3595.3,3595.2,2.61352975]
[1732897122283,1.5733592,3595.3,3595.2,2.61352975]
[1732897122482,1.5733592,3595.3,3595.2,2.89132975]
[1732897122679,0.71826443,3595.3,3595.2,2.89132975]
[1732897122885,0.71826443,3595.3,3595.2,2.61352975]
[1732897123085,0.99605443,3595.3,3595.2,2.61352975]
[1732897123393,0.65840027,3595.3,3595.2,2.61352975]
[1732897123588,0.65840027,3595.3,3595.2,2.89132975]
[1732897123894,0.93619027,3595.3,3595.2,2.91756814]
[1732897124398,0.65840027,3595.3,3595.2,2.91756814]
[1732897124979,0.93619027,3595.3,3595.2,2.63976814]
[1732897125194,1.69580556,3595.3,3595.2,1.77094437]
[1732897126691,1.67876279,3595.3,3595.2,1.77094437]
[1732897127391,1.40097279,3595.3,3595.2,1.77094437]
[1732897127588,0.9191475,3595.3,3595.2,1.77094437]
[1732897127793,1.65918077,3595.3,3595.2,1.77094437]
[1732897127990,0.9191475,3595.3,3595.2,1.77094437]
[1732897128292,3.24222773,3595.3,3595.2,1.77094437]
[1732897128488,3.98226772,3595.3,3595.2,1.77094437]
[1732897128887,3.98226772,3595.3,3594.4,3.41]
[1732897128888,3.70447772,3595.3,3594.4,3.41]
[1732897129085,3.2078,3594.7,3594.4,1.92]
[1732897129288,0.27785,3594.5,3594.4,1.92]
[1732897129597,1.92855717,3594.5,3594.4,1.92]
[1732897129782,1.92855717,3594.5,3594.4,1.78]
[1732897130388,1.92855717,3594.5,3594.4,1.64]
[1732897130598,0.27795,3593.3,3592.7,3.0778]
[1732897130892,0.27798,3592.8,3592.7,3.84]
[1732897131088,1.18864718,3592.8,3592.7,3.84]
[1732897131397,1.92868717,3592.8,3592.7,2.31981747]
[1732897131592,3.9737874,3592.8,3592.6,3.93241211]
[1732897131804,3.27969717,3592.7,3592.6,4.03915688]
[1732897132094,3.27969717,3592.7,3592.6,3.59214148]
[1732897132290,3.27969717,3592.7,3591.4,4.9859]
[1732897132291,0.27812,3591.0,3590.9,8.76913304]
[1732897132496,1.18878718,3591.0,3590.9,8.76463304]
[1732897132695,5.53056605,3591.0,3590.9,8.89463304]
[1732897132888,4.87722707,3591.0,3590.9,8.89463304]
[1732897133290,0.27814,3590.8,3590.7,11.6269682]
[1732897133487,4.85850717,3590.8,3590.7,0.05]
[1732897133693,1.65070717,3590.8,3590.7,0.05]
[1732897135188,1.65070717,3590.8,3590.7,0.62]
[1732897135392,2.9483999,3591.5,3590.7,3.8278]
[1732897135587,0.58814651,3591.4,3590.9,0.27813]
[1732897135785,0.69495,3592.9,3590.9,0.27813]
[1732897135786,2.9483999,3591.7,3591.3,3.2078]
[1732897135991,2.9483999,3591.7,3591.3,3.7078]
[1732897136396,2.9483999,3591.7,3591.4,38.2]
[1732897136699,2.9483999,3591.7,3591.4,0.25]
[1732897137193,2.9483999,3591.7,3591.5,38.2]
[1732897137398,2.9483999,3591.7,3591.5,0.06]
[1732897138085,2.9483999,3591.7,3590.8,1.64601801]
[1732897138289,2.9483999,3591.7,3591.0,3.2078]
[1732897138489,0.27808,3591.6,3591.0,3.9478]
[1732897138893,0.27809,3591.5,3591.0,3.9478]
[1732897139089,0.27807,3591.6,3591.0,3.9478]
[1732897139394,2.9483999,3591.7,3591.0,3.9478]
[1732897139605,3.2264699,3591.7,3591.0,3.9478]
[1732897139803,0.27808,3591.6,3591.0,3.9478]
[1732897140099,3.43933562,3592.0,3591.0,3.9478]
[1732897140295,1.94090418,3592.4,3591.5,3.2078]
[1732897140501,1.94090418,3592.4,3591.5,4.2678]
[1732897140707,0.27832747,3591.9,3591.7,0.27806]
[1732897140994,0.27832747,3591.9,3591.8,3.2078]
[1732897141202,0.27832747,3591.9,3591.8,0.96]
[1732897141502,3.9397694,3591.9,3591.1,1.7831]
[1732897141794,3.9397694,3591.9,3591.1,4.0131]
[1732897142507,0.27806,3591.8,3591.2,0.2781]
[1732897142799,0.27832747,3591.9,3591.2,3.03]
[1732897143000,0.27807,3591.7,3591.2,3.03]
[1732897143198,0.27832747,3591.9,3591.2,3.03]
[1732897143507,0.17394698,3591.8,3591.3,3.2078]
[1732897143696,0.17394698,3591.7,3591.5,0.27808]
[1732897144001,0.17394698,3591.6,3591.5,1.19808]
[1732897144198,0.17394698,3591.6,3591.5,0.92]
[1732897144403,0.27809,3591.5,3591.0,0.27811]
[1732897144599,0.17394698,3591.4,3591.0,6.6678]
[1732897144806,0.27811,3591.1,3591.0,3.46]
[1732897145099,0.17394698,3591.1,3591.0,3.46]
[1732897145296,0.27811,3591.1,3591.0,2.59010939]
[1732897145496,0.90971499,3591.1,3591.0,2.59010939]
[1732897145701,1.76776756,3591.1,3591.0,2.59010939]
[1732897146604,1.76776756,3591.1,3591.0,1.19848364]
[1732897146803,1.48965756,3591.1,3591.0,1.19848364]
[1732897147003,1.76776756,3591.1,3591.0,1.19848364]
[1732897147307,1.76776756,3591.1,3591.0,0.84888266]
[1732897147512,12.74909304,3591.1,3590.0,4.8996]
[1732897147793,12.74909304,3591.1,3590.2,3.63]
[1732897147794,6.1561999,3590.7,3590.2,3.63]
[1732897147993,1.75888192,3590.6,3590.2,3.63]
[1732897148196,1.75888192,3590.5,3590.2,3.63]
[1732897148405,1.75888192,3590.4,3590.2,2.41195897]
[1732897148611,0.27812,3591.0,3590.6,0.27815]
[1732897148901,0.27814,3590.7,3590.6,1.27]
[1732897149100,0.95969474,3590.7,3590.6,1.27]
[1732897149298,1.86624573,3590.7,3590.6,1.27]
[1732897149800,1.86624573,3590.7,3590.6,1.54815]
[1732897150008,1.86624573,3590.7,3590.0,1.6918]
[1732897150204,0.27819,3590.1,3590.0,4.24]
[1732897150405,1.23788474,3590.1,3590.0,2.84837425]
[1732897150904,2.14443573,3590.1,3590.0,2.84837425]
[1732897151106,2.14443573,3590.1,3590.0,1.28199164]
[1732897151406,10.74065606,3590.1,3590.0,0.19455063]
[1732897151603,10.46246606,3590.1,3589.2,0.86]
[1732897151796,0.27825,3589.3,3589.2,3.86]
[1732897152212,0.90422066,3589.3,3589.2,3.86]
[1732897152396,5.29175445,3589.3,3589.2,3.23330981]
[1732897152706,2.08395445,3589.3,3589.2,1.84098653]
[1732897153408,5.66404759,3589.3,3589.2,1.84098653]
[1732897153606,2.08395445,3589.3,3589.2,1.84098653]
[1732897154306,2.08395445,3589.3,3589.2,0.62258893]
[1732897154808,1.80570445,3589.3,3589.2,2.28558893]
[1732897155108,1.66185481,3589.3,3589.1,1.91583533]
[1732897155311,1.86841042,3589.2,3589.1,3.09968327]
[1732897155504,2.14667042,3589.2,3589.1,2.57617122]
[1732897156410,5.09507032,3589.2,3589.1,2.57617122]
[1732897156615,5.09507032,3589.2,3589.1,1.66064558]
[1732897157320,8.65381584,3589.2,3589.1,0.78622558]
[1732897157505,0.27832,3588.5,3588.2,1.7738]
[1732897157702,0.27833,3588.3,3588.2,5.7738]
[1732897157907,1.83960375,3588.3,3588.2,5.7738]
[1732897158803,1.0663478,3588.3,3588.2,6.05214]
[1732897159099,1.81674569,3588.3,3588.2,6.05214]
[1732897159307,0.69563,3589.4,3588.2,5.7738]
[1732897159503,7.08807886,3589.5,3588.2,6.05213]
[1732897159700,3.2078,3589.1,3588.2,5.7738]
[1732897159902,0.27832,3588.5,3588.2,5.7738]
[1732897160212,0.27833,3588.4,3588.2,5.7738]
[1732897160421,0.27833,3588.4,3588.2,4.55504286]
[1732897161202,0.27832,3588.5,3588.2,4.55504286]
[1732897161406,0.27855153,3588.8,3588.2,4.55504286]
[1732897161905,0.27855153,3588.8,3588.7,0.2783]
[1732897162102,0.27855153,3588.8,3588.7,2.88]
[1732897162508,0.55684153,3588.8,3588.7,2.88]
[1732897162711,3.2078,3589.2,3588.7,3.1583]
[1732897163010,0.27846464,3589.3,3588.8,3.4665]
[1732897163310,3.59145872,3589.2,3588.8,3.0212]
[1732897163508,3.59145872,3589.2,3588.9,0.27828]
[1732897163703,0.27846464,3589.3,3589.2,0.27826]
[1732897163908,0.27846464,3589.3,3589.2,2.24]
[1732897164210,4.24150428,3589.3,3589.2,2.24]
[1732897164534,0.55671464,3589.3,3589.2,2.24]
[1732897164718,0.27846464,3589.3,3589.2,2.24]
[1732897165112,0.55671464,3589.3,3589.2,2.24]
[1732897165301,0.55671464,3589.3,3589.2,1.36969664]
[1732897165612,0.27846464,3589.3,3589.2,0.28]
[1732897165807,3.93620019,3589.3,3589.2,0.28]
[1732897166010,0.27846464,3589.3,3589.2,0.28]
[1732897166207,0.27846464,3589.3,3589.2,0.55826]
[1732897166405,0.27846464,3589.3,3589.2,0.28]
[1732897166619,0.55671464,3589.3,3589.2,0.28]
[1732897166814,0.27846464,3589.3,3589.2,0.55826]
[1732897167519,0.27846464,3589.3,3589.2,3.76606]
[1732897169409,0.95217507,3589.3,3589.2,3.76606]
[1732897170217,0.67371043,3589.3,3589.2,3.76606]
[1732897171217,0.89824516,3589.3,3589.2,3.76606]
[1732897171612,0.22464138,3589.3,3589.2,3.76606]
[1732897171809,0.89835181,3589.3,3589.2,3.76606]
[1732897172014,0.50606913,3590.1,3589.2,8.4878]
[1732897172214,0.27846463,3590.1,3590.0,0.2782]
[1732897172412,0.27846463,3590.1,3590.0,5.636]
[1732897172619,0.27844372,3590.4,3590.0,5.3578]
[1732897172917,0.27844372,3590.4,3589.8,0.69552]
[1732897172918,2.9483999,3590.2,3589.7,1.841]
[1732897173116,2.9483999,3590.2,3589.7,3.011]
[1732897173327,2.9483999,3589.8,3589.7,1.61878139]
[1732897173516,0.27823,3589.7,3589.5,0.27824]
[1732897173716,0.27823,3589.7,3589.5,0.78823]
[1732897173922,2.9483999,3589.8,3589.5,3.7178]
[1732897174114,0.27823,3589.6,3589.5,3.7178]
[1732897174417,2.9483999,3589.8,3589.5,3.7178]
[1732897174619,3.2266199,3589.8,3589.6,0.27823]
[1732897174823,0.27822,3589.8,3589.6,1.12823]
[1732897175011,0.27822,3589.7,3589.6,0.85]
[1732897175414,3.90299675,3590.1,3589.8,0.27821]
[1732897175616,3.18541542,3590.2,3589.8,3.25821]
[1732897175819,0.23701552,3590.2,3590.1,0.27819]
[1732897176017,0.55661372,3590.4,3590.2,0.27818]
[1732897176218,0.27818,3590.3,3590.2,1.41415314]
[1732897176515,3.2265799,3590.3,3590.2,1.41415314]
[1732897177319,3.2265799,3590.3,3590.2,1.24666091]
[1732897177620,0.55661372,3590.4,3590.2,1.52484091]
[1732897178011,0.27844372,3590.4,3590.3,0.27818]
[1732897178211,0.27844372,3590.4,3590.3,3.47818]
[1732897178624,0.23527985,3590.7,3590.6,0.27815]
[1732897178816,0.27812,3591.0,3590.6,3.16]
[1732897179115,3.48624372,3591.2,3590.6,3.16]
[1732897179322,2.9483999,3591.1,3590.6,3.16]
[1732897179616,3.2265099,3591.1,3590.9,0.27812]
[1732897179816,2.9483999,3591.1,3590.9,2.37]
[1732897180017,2.9483999,3591.1,3591.0,0.27812]
[1732897180210,3.2265099,3591.1,3591.0,1.33188001]
[1732897180718,2.9483999,3591.1,3591.0,1.33188001]
[1732897181223,2.9483999,3591.1,3590.3,4.53184026]
[1732897181224,6.79760553,3591.1,3590.3,4.53184026]
[1732897181417,4.29038327,3590.9,3590.8,0.27813]
[1732897181723,3.36217565,3591.0,3590.8,2.19]
[1732897182017,8.72648368,3591.0,3590.9,0.27813]
[1732897182223,3.36217565,3591.0,3590.9,2.56813]
[1732897182525,4.00748587,3591.0,3590.9,2.56813]
[1732897182823,9.37247756,3591.0,3590.9,2.56813]
[1732897183119,4.00841752,3591.0,3590.9,2.56813]
[1732897183424,0.64531022,3591.0,3590.9,2.56813]
[1732897183613,3.36412013,3591.0,3590.9,2.29]
[1732897183814,9.99918692,3591.1,3591.0,0.27812]
[1732897184013,9.99921724,3591.1,3591.0,4.39812]
[1732897184213,8.92585125,3591.1,3591.0,4.39812]
[1732897184412,6.77883692,3591.1,3591.0,4.39812]
[1732897184814,1.83182889,3591.1,3591.0,9.39812]
[1732897185217,5.36739465,3591.2,3591.1,0.27811]
[1732897185412,5.36739465,3591.2,3591.1,4.55811]
[1732897185618,5.36739465,3591.2,3591.1,9.55811]
[1732897185815,2.48749465,3591.2,3591.1,9.55811]
[1732897186015,2.48749465,3591.2,3591.1,4.55811]
[1732897187010,0.27805,3591.9,3591.1,9.97529]
[1732897187214,9.64745304,3592.5,3591.4,3.2078]
[1732897187416,0.27833367,3592.2,3591.9,3.2078]
[1732897187620,6.15473063,3592.1,3591.5,3.2078]
[1732897187816,7.97563063,3592.1,3591.5,5.4678]
[1732897188013,0.27805,3592.0,3591.5,5.4678]
[1732897188223,1.8209,3592.1,3591.5,5.4678]
[1732897189024,0.27806,3591.8,3591.7,0.27806]
[1732897189223,0.27806,3591.8,3591.7,2.38]
[1732897189727,2.05270272,3592.1,3591.7,2.38]
[1732897190126,0.27806,3591.8,3591.7,2.38]
[1732897191423,0.27806,3591.8,3591.7,2.65806]
[1732897191623,0.27804,3592.0,3591.8,0.27806]
[1732897191821,0.23180272,3592.1,3592.0,0.27804]
[1732897192024,0.55636367,3592.2,3592.0,3.50804]
[1732897192218,0.27833367,3592.2,3592.0,1.83858725]
[1732897192428,0.27833367,3592.2,3592.0,0.39]
[1732897192615,0.27833367,3592.2,3592.0,0.11]
[1732897192818,0.27804,3592.1,3592.0,0.11]
[1732897193721,0.90890478,3592.1,3592.0,0.11]
[1732897194133,0.27807,3591.6,3591.5,2.65368153]
[1732897194334,0.27807,3591.6,3591.5,0.77825069]
[1732897194830,0.9091112,3591.6,3591.5,0.77825069]
[1732897195026,0.27807,3591.6,3591.5,0.77825069]
[1732897195222,0.27804,3592.1,3591.9,0.27805]
[1732897195429,0.90926452,3592.0,3591.9,2.88]
[1732897195627,0.63122452,3592.0,3591.9,3.15805]
[1732897195823,0.27804,3592.0,3591.9,2.88]
[1732897196033,0.90928624,3592.0,3591.9,2.88]
[1732897197334,4.11708624,3592.0,3591.9,2.88]
[1732897198346,0.90928624,3592.0,3591.9,2.88]
[1732897198542,0.63124624,3592.0,3591.9,3.15805]
[1732897198842,0.27804,3592.0,3591.9,3.15805]
[1732897199035,0.27804,3592.0,3591.9,2.88]
[1732897199936,0.5049781,3592.0,3591.9,2.88]
[1732897200528,4.34445497,3592.0,3591.9,2.62941433]
[1732897200936,1.13665497,3592.0,3591.9,2.62941433]
[1732897201338,1.13665497,3592.0,3591.9,0.50218205]
[1732897201538,0.85861497,3592.0,3591.9,0.50218205]
[1732897201737,1.13665497,3592.0,3591.9,0.50218205]
[1732897202545,0.85861497,3592.0,3591.9,0.50218205]
[1732897202731,1.13665497,3592.0,3591.9,0.50218205]
[1732897202937,0.85861497,3592.0,3591.6,1.7889]
[1732897203132,0.27807,3591.7,3591.6,5.7889]
[1732897203346,0.63167687,3591.8,3591.6,5.7889]
[1732897203652,0.63167687,3591.7,3591.6,6.06697]
[1732897203840,0.63167687,3591.7,3591.6,5.7889]
[1732897204040,0.90974687,3591.7,3591.6,5.7889]
[1732897204236,0.63167687,3591.7,3591.6,5.7889]
[1732897204546,0.63167687,3591.7,3591.6,6.06697]
[1732897204731,0.63167687,3591.8,3591.6,9.27477]
[1732897204936,0.63167687,3591.7,3591.6,9.27477]
[1732897205641,0.27805,3592.0,3591.8,0.27806]
[1732897205839,0.27805,3592.0,3591.8,3.85806]
[1732897205840,0.63330933,3591.9,3591.8,3.85806]
[1732897206645,0.63330933,3591.9,3591.8,3.58]
[1732897206844,0.91135933,3591.9,3591.8,3.58]
[1732897207238,0.63330933,3591.9,3591.8,3.85806]
[1732897207437,0.91135933,3591.9,3591.8,3.58]
[1732897209039,2.96034727,3591.9,3591.0,5.66]
[1732897209241,2.96034727,3591.9,3590.2,6.531]
[1732897209242,3.2078,3591.1,3590.2,6.531]
[1732897209440,3.6703,3591.8,3590.2,5.00918]
[1732897209441,0.27817,3590.4,3590.2,5.00918]
[1732897209650,5.53483794,3591.0,3590.2,9.731]
[1732897209940,0.27814,3590.8,3590.7,0.27814]
[1732897210147,0.27813,3590.9,3590.7,1.27]
[1732897210342,0.27814,3590.8,3590.7,1.27]
[1732897210552,0.27814,3590.8,3590.7,0.33784805]
[1732897210847,0.27818,3590.2,3590.1,1.9023]
[1732897211142,0.27818,3590.2,3590.1,5.4623]
[1732897211340,3.23852727,3590.2,3590.1,3.56]
[1732897211646,3.23852727,3590.2,3590.1,3.83819]
[1732897211647,0.86757809,3590.2,3590.1,3.83819]
[1732897211947,0.63330933,3590.2,3590.1,3.83819]
[1732897212135,0.63330933,3590.2,3590.1,8.83819]
[1732897212452,0.63330933,3590.5,3590.4,0.27817]
[1732897212637,0.63435812,3590.5,3590.4,2.53817]
[1732897213348,0.63435812,3590.5,3590.4,5.74597]
[1732897213748,0.63435812,3590.5,3590.4,10.74597]
[1732897216049,0.27816,3590.5,3590.4,2.26]
[1732897216244,0.27815,3590.6,3590.4,2.26]
[1732897216444,0.63352391,3590.5,3590.4,2.53817]
[1732897216646,0.63352391,3590.5,3590.4,5.74597]
[1732897216944,0.63348075,3590.7,3590.4,2.26]
[1732897217148,0.91164075,3590.6,3590.5,0.27816]
[1732897217338,0.91164075,3590.6,3590.5,0.88816]
[1732897217544,0.91164075,3590.6,3590.5,0.61]
[1732897217845,0.91164075,3590.6,3590.2,5.029]
[1732897217846,0.69541,3590.5,3588.6,3.2078]
[1732897218051,0.27826,3589.3,3588.7,1.9362]
[1732897218246,0.91174075,3589.2,3588.9,0.27828]
[1732897218442,0.27827,3589.1,3588.9,0.54]
[1732897218645,0.27827,3589.2,3588.9,0.54]
[1732897218843,0.63205574,3589.1,3588.9,0.54]
[1732897219044,0.27827,3589.1,3588.9,0.54]
[1732897219240,3.2078,3589.4,3588.9,0.54]
[1732897219440,0.27828,3589.0,3588.9,0.54]
[1732897219738,0.27828,3589.0,3588.9,1e-08]
[1732897219739,3.48608,3589.0,3588.9,1e-08]
[1732897219944,6.16749138,3589.0,3588.0,0.27835]
[1732897220147,3.2078,3588.6,3588.0,3.72]
[1732897220353,0.27835,3588.1,3588.0,3.72]
[1732897220749,2.32835895,3588.4,3588.0,3.72]
[1732897220953,1.8954,3588.5,3588.2,0.27833]
[1732897221141,2.32835895,3589.2,3588.2,3.72]
[1732897221341,0.27837318,3589.4,3588.8,3.2078]
[1732897221546,0.14256882,3589.5,3589.4,0.27825]
[1732897221746,3.2078,3590.3,3589.4,6.2278]
[1732897221946,3.2078,3590.3,3590.2,0.27818]
[1732897222152,2.32835895,3590.8,3590.2,0.83]
[1732897222353,0.27816,3590.6,3590.2,0.83]
[1732897222549,2.32835895,3590.8,3590.7,0.27814]
[1732897222550,0.27837318,3590.8,3590.7,0.27814]
[1732897222758,2.32835895,3591.2,3590.9,0.27813]
[1732897223055,0.27812,3591.0,3590.9,0.39]
[1732897223245,3.48592,3591.0,3590.9,0.11187]
[1732897223447,4.11688102,3591.0,3590.9,0.11187]
[1732897223747,4.1165418,3591.0,3590.9,0.11187]
[1732897223945,3.83857903,3591.0,3590.9,0.11187]
[1732897224146,3.2078,3591.0,3590.9,0.11187]
[1732897224756,3.2078,3591.0,3590.4,0.27816]
[1732897224948,2.48089734,3590.9,3590.4,0.63]
[1732897225143,1.85,3590.9,3590.4,0.63]
[1732897225453,0.27814,3590.8,3590.4,0.90816]
[1732897225656,0.63104984,3590.8,3590.4,0.63]
[1732897225854,1.85,3590.9,3590.4,0.63]
[1732897225855,0.27816,3590.5,3590.4,0.63]
[1732897226249,3.2078,3590.6,3590.4,0.63]
[1732897226443,3.2078,3590.6,3589.6,3.35]
[1732897226651,0.2782,3590.1,3589.8,0.27821]
[1732897226850,0.27821,3589.9,3589.8,2.42]
[1732897227278,3.2078,3590.2,3589.8,2.69821]
[1732897227452,3.2078,3590.2,3589.8,2.42]
[1732897227758,0.27821,3589.9,3589.8,2.42]
[1732897228053,0.27819,3590.1,3589.8,2.69821]
[1732897228250,0.27817,3590.4,3589.8,2.42]